bitfinex/quotes_SOLUSD_20251201
["timestamp","ask_amount","ask_price","bid_price","bid_amount"]
[1764548313668,0.71,130.84,130.77,8.2573026]
[1764548313885,8.2573026,130.82,130.77,8.2573026]
[1764548314191,8.2573026,130.84,130.74,26.77068991]
[1764548314390,0.71,130.87,130.81,7.64467548]
[1764548314391,8.9673026,130.87,130.81,7.64467548]
[1764548314690,33.75992914,131.01,130.86,8.2573026]
[1764548314869,33.75992914,131.01,130.81,26.75636418]
[1764548314870,8.2573026,130.97,130.85,16.308864]
[1764548315061,8.2573026,130.97,130.92,8.2573026]
[1764548315264,16.308864,130.98,130.93,8.2573026]
[1764548315477,4.69927772,131.0,130.94,8.2573026]
[1764548315683,4.69927772,131.0,130.86,16.308864]
[1764548315684,0.2,131.01,130.98,8.2573026]
[1764548315890,0.2,131.01,130.94,8.2573026]
[1764548316092,0.2,131.01,130.99,8.2573026]
[1764548316273,0.2,131.01,130.91,64.93010464]
[1764548316585,8.2573026,131.0,130.89,7.63993008]
[1764548316794,0.2,131.01,130.97,8.2573026]
[1764548317182,0.2,131.01,130.99,8.2573026]
[1764548317389,0.2,131.01,130.91,1.99999999]
[1764548317576,0.2,131.01,131.0,8.2573026]
[1764548318293,0.2,131.01,130.94,1.99999999]
[1764548318496,0.2,131.01,130.95,26.72775868]
[1764548318809,0.2,131.01,131.0,8.2573026]
[1764548319493,1e-08,131.01,131.0,8.2573026]
[1764548319893,1e-08,131.01,130.93,1.99999999]
[1764548320187,1e-08,131.01,131.0,8.2573026]
[1764548320401,1e-08,131.01,131.0,15.89089038]
[1764548320693,1e-08,131.01,130.92,3.74]
[1764548320694,1e-08,131.01,130.96,7.63591936]
[1764548320892,0.71000001,131.01,130.97,8.2573026]
[1764548321092,17.77724753,131.01,130.96,15.89322196]
[1764548321284,17.06724752,131.0,130.95,8.2573026]
[1764548321594,17.06724752,131.0,130.94,7.63687324]
[1764548321795,8.80994492,131.0,130.96,8.2573026]
[1764548321996,17.06724752,131.0,130.96,8.2573026]
[1764548322180,17.77724752,131.0,130.91,19.09582083]
[1764548322376,17.06724752,131.0,130.96,8.2573026]
[1764548322569,17.06724752,131.0,130.91,19.09582083]
[1764548322767,1e-08,131.01,130.91,21.09582082]
[1764548322971,8.80994492,130.99,130.91,19.09582083]
[1764548323196,17.06724752,130.99,130.91,19.09582083]
[1764548323374,17.06724752,130.99,130.9,7.6394194]
[1764548323375,8.80994492,130.97,130.9,7.6394194]
[1764548323577,17.06724752,130.97,130.92,8.2573026]
[1764548323767,8.80994492,131.0,130.95,8.2573026]
[1764548323971,8.80994492,131.0,130.9,26.73796791]
[1764548323972,8.2573026,130.99,130.94,8.2573026]
[1764548324183,9.51994492,131.0,130.94,8.2573026]
[1764548324498,8.2573026,130.99,130.94,8.2573026]
[1764548324704,8.34301217,131.01,130.91,7.63883584]
[1764548324705,1e-08,131.01,130.98,8.2573026]
[1764548324999,1e-08,131.01,130.94,16.308864]
[1764548325294,1e-08,131.01,131.0,8.2573026]
[1764548326396,1e-08,131.01,131.0,15.89089038]
[1764548326584,1e-08,131.01,131.0,17.89089037]
[1764548327291,1e-08,131.01,131.0,26.14819297]
[1764548327613,1e-08,131.01,131.0,184.95813789]
[1764548328272,1e-08,131.01,131.0,17.89089037]
[1764548328476,1e-08,131.01,131.0,15.89089038]
[1764548329001,1e-08,131.01,131.0,32.19975438]
[1764548329208,1e-08,131.01,131.0,7.63358778]
[1764548329408,1e-08,131.01,131.0,15.89089038]
[1764548330034,1e-08,131.01,131.0,32.19975438]
[1764548330175,1e-08,131.01,131.0,26.70083529]
[1764548330375,1e-08,131.01,131.0,34.95813789]
[1764548330991,1e-08,131.01,131.0,35.72149666]
[1764548332080,1e-08,131.01,131.0,27.46419406]
[1764548332271,1e-08,131.01,131.0,17.89089037]
[1764548333401,1e-08,131.01,131.0,23.94245178]
[1764548333609,1e-08,131.01,130.97,1.99999999]
[1764548333800,1e-08,131.01,131.0,8.2573026]
[1764548334003,1e-08,131.01,130.96,16.308864]
[1764548334306,1e-08,131.01,130.91,1.99999999]
[1764548334477,1e-08,131.01,131.0,8.2573026]
[1764548334677,0.71000001,131.01,130.97,8.2573026]
[1764548334902,8.80994492,131.0,130.87,1.99999999]
[1764548335084,0.71000001,131.01,130.92,8.2573026]
[1764548335085,8.2573026,130.97,130.92,8.2573026]
[1764548335287,8.2573026,130.93,130.81,7.64467548]
[1764548335488,8.2573026,130.92,130.87,8.2573026]
[1764548335689,8.2573026,130.94,130.89,8.2573026]
[1764548335874,17.06724752,130.93,130.84,16.308864]
[1764548336073,0.72,130.92,130.81,3.74]
[1764548336293,8.2573026,130.91,130.86,8.2573026]
[1764548336685,0.72,130.9,130.86,8.2573026]
[1764548337204,8.9773026,130.9,130.82,7.64409111]
[1764548337392,0.72,130.9,130.87,8.2573026]
[1764548337702,8.9773026,130.89,130.84,8.2573026]
[1764548338210,0.72,130.88,130.85,8.2573026]
[1764548338412,19.09203349,130.95,130.82,26.7543189]
[1764548338413,0.72,130.94,130.87,8.2573026]
[1764548338627,17.06724752,130.93,130.88,8.2573026]
[1764548338837,16.308864,130.96,130.89,8.2573026]
[1764548339007,8.2573026,130.94,130.89,8.2573026]
[1764548339213,0.72,130.95,130.85,16.308864]
[1764548339532,0.72,130.95,130.92,8.2573026]
[1764548340021,0.72,130.95,130.85,16.308864]
[1764548340229,8.2573026,130.9,130.82,26.7543189]
[1764548340396,8.2573026,130.9,130.76,158.2573026]
[1764548340397,7.63907319,130.91,130.84,8.2573026]
[1764548340592,7.63907319,130.91,130.77,26.76454844]
[1764548340593,8.2573026,130.88,130.77,26.76454844]
[1764548340807,8.2573026,130.84,130.77,26.76454844]
[1764548341120,9.52994492,130.87,130.77,64.99961764]
[1764548341417,8.2573026,130.82,130.77,26.76454844]
[1764548341598,8.80994492,130.84,130.77,26.76454844]
[1764548341599,8.9773026,130.81,130.77,26.76454844]
[1764548341922,0.72,130.81,130.77,7.64701384]
[1764548342092,0.72,130.81,130.79,8.2573026]
[1764548342291,16.308864,130.89,130.81,16.308864]
[1764548342292,0.72,130.89,130.81,16.308864]
[1764548342498,0.72,130.88,130.82,7.64409111]
[1764548343113,8.2573026,130.84,130.77,7.64701384]
[1764548343323,8.2573026,130.85,130.8,8.2573026]
[1764548343492,8.2573026,130.85,130.77,7.64701384]
[1764548343687,0.72,130.84,130.81,8.2573026]
[1764548343888,8.9773026,130.84,130.77,26.76454844]
[1764548344091,8.2573026,130.8,130.74,7.64876854]
[1764548344323,8.80994492,130.83,130.74,35.02799251]
[1764548344324,8.2573026,130.79,130.74,35.02799251]
[1764548344514,8.80994492,130.79,130.73,7.74925126]
[1764548344827,8.80994492,130.79,130.66,3.74]
[1764548344828,8.2573026,130.74,130.66,3.74]
[1764548345114,8.80994492,130.76,130.65,16.308864]
[1764548345324,8.2573026,130.71,130.63,26.79323278]
[1764548345500,8.80994492,130.74,130.66,8.2573026]
[1764548345696,0.72,130.73,130.69,8.2573026]
[1764548346003,8.9773026,130.73,130.69,8.2573026]
[1764548346191,0.72,130.73,130.64,16.308864]
[1764548346394,0.72,130.73,130.63,65.17927962]
[1764548346395,0.72,130.72,130.63,57.41407026]
[1764548346600,8.9773026,130.72,130.67,8.2573026]
[1764548346818,8.2573026,130.71,130.66,8.2573026]
[1764548347027,8.2573026,130.68,130.63,27.39532602]
[1764548347521,8.2573026,130.64,130.62,0.1]
[1764548347897,0.72,130.63,130.62,0.1]
[1764548348205,0.72,130.67,130.62,8.3573026]
[1764548348422,0.72,130.67,130.64,8.2573026]
[1764548348622,17.06724752,130.65,130.61,4.24610044]
[1764548348798,17.06724752,130.62,130.61,2.18610044]
[1764548348999,17.06724752,130.62,130.61,1.55610044]
[1764548349649,16.308864,130.59,130.58,0.1]
[1764548349820,33.37611152,130.59,130.58,1e-08]
[1764548350330,37.11611152,130.59,130.58,1e-08]
[1764548350500,36.51636309,130.59,130.58,1e-08]
[1764548351019,37.11611152,130.59,130.58,1e-08]
[1764548351392,0.33766405,130.66,130.58,1e-08]
[1764548351603,1.99999999,130.64,130.58,1e-08]
[1764548351898,0.33766405,130.66,130.58,1e-08]
[1764548352099,0.33766405,130.66,130.59,8.2573026]
[1764548352302,0.33766405,130.66,130.61,8.2573026]
[1764548352626,0.33766405,130.66,130.59,8.2573026]
[1764548352924,0.33766405,130.66,130.63,8.2573026]
[1764548353136,0.33766405,130.66,130.6,0.68]
[1764548353423,0.33766405,130.66,130.6,8.2573026]
[1764548353616,16.80110201,130.66,130.58,8.25730261]
[1764548353818,8.2573026,130.6,130.58,1e-08]
[1764548354126,16.308864,130.64,130.58,7.65788203]
[1764548354316,0.33766405,130.66,130.61,8.2573026]
[1764548354493,0.33766405,130.66,130.58,27.48323353]
[1764548354494,0.33766405,130.66,130.58,1e-08]
[1764548354818,8.2573026,130.62,130.58,1e-08]
[1764548355025,16.308864,130.65,130.58,8.25730261]
[1764548355237,8.2573026,130.6,130.58,1e-08]
[1764548355408,8.80994492,130.62,130.58,1e-08]
[1764548355613,8.2573026,130.65,130.6,8.2573026]
[1764548355817,8.80994492,130.65,130.59,8.2573026]
[1764548356115,8.2573026,130.62,130.58,1e-08]
[1764548356422,9.72060258,130.65,130.6,9.72060258]
[1764548356627,0.33766405,130.66,130.61,9.72060258]
[1764548356819,9.72060258,130.65,130.59,26.80143961]
[1764548357030,9.72060258,130.62,130.58,7.65802731]
[1764548357335,9.72060258,130.59,130.58,1e-08]
[1764548357506,8.80994492,130.61,130.58,1e-08]
[1764548357695,9.72060258,130.59,130.58,1e-08]
[1764548357903,8.80994492,130.61,130.58,1e-08]
[1764548358229,20.309116,130.63,130.58,1e-08]
[1764548358396,9.72060258,130.59,130.58,1e-08]
[1764548358596,9.72060258,130.6,130.58,1e-08]
[1764548358823,9.72060258,130.59,130.58,1e-08]
[1764548359013,4.000252,130.63,130.58,1e-08]
[1764548359212,9.72060258,130.64,130.58,0.68000001]
[1764548359416,9.72060258,130.65,130.6,9.72060258]
[1764548359614,0.33766405,130.66,130.63,9.72060258]
[1764548359799,9.72060258,130.65,130.58,0.68000001]
[1764548360123,0.33766405,130.66,130.58,0.68000001]
[1764548360124,9.72060258,130.62,130.58,0.68000001]
[1764548360324,9.72060258,130.62,130.58,1e-08]
[1764548360495,7.6540375,130.65,130.58,1e-08]
[1764548360696,8.80994492,130.64,130.58,1e-08]
[1764548360928,9.72060258,130.59,130.58,1e-08]
[1764548361141,8.80994492,130.59,130.58,1e-08]
[1764548361431,18.5305475,130.59,130.58,1e-08]
[1764548361608,8.80994492,130.59,130.58,1e-08]
[1764548361806,18.5305475,130.59,130.58,1e-08]
[1764548362012,16.308864,130.62,130.58,1e-08]
[1764548362208,26.78913126,130.65,130.58,1e-08]
[1764548362425,16.46479893,130.64,130.58,1e-08]
[1764548362641,9.72060258,130.62,130.58,1e-08]
[1764548362808,9.72060258,130.61,130.58,1e-08]
[1764548363140,9.72060258,130.62,130.58,1e-08]
[1764548363347,0.33766405,130.66,130.61,9.72060258]
[1764548363640,3.74,130.78,130.65,9.72060258]
[1764548363871,3.99665124,130.76,130.67,9.72060258]
[1764548364007,9.72060258,130.7,130.63,0.68]
[1764548364332,3.99665124,130.76,130.6,10.41060258]
[1764548364333,9.72060258,130.65,130.6,10.41060258]
[1764548364629,9.72060258,130.65,130.61,7.65638159]
[1764548364833,9.72060258,130.62,130.58,1e-08]
[1764548365010,35.5949759,130.67,130.58,17.37821565]
[1764548365214,7.65206518,130.69,130.62,9.72060258]
[1764548365420,9.72060258,130.7,130.59,16.998864]
[1764548365641,9.72060258,130.67,130.62,9.72060258]
[1764548365812,9.72060258,130.69,130.64,9.72060258]
[1764548366016,8.80994492,130.71,130.6,0.69]
[1764548366331,9.72060258,130.66,130.61,9.72060258]
[1764548366536,9.72060258,130.63,130.59,0.69]
[1764548366747,9.72060258,130.65,130.6,9.72060258]
[1764548367036,7.65259761,130.68,130.62,9.72060258]
[1764548367211,0.2,130.73,130.6,3.74]
[1764548367406,9.72060258,130.72,130.67,9.72060258]
[1764548367631,0.2,130.73,130.65,3.74]
[1764548367825,9.92060258,130.73,130.68,9.72060258]
[1764548368027,0.2,130.73,130.68,9.72060258]
[1764548368226,0.2,130.73,130.71,9.72060258]
[1764548368441,0.2,130.73,130.71,17.37087126]
[1764548368641,0.2,130.73,130.72,10.41060258]
[1764548368937,0.2,130.73,130.72,0.69]
[1764548369142,0.2,130.73,130.69,9.72060258]
[1764548369518,0.2,130.73,130.68,7.65228037]
[1764548369719,9.92060258,130.73,130.69,0.69]
[1764548370140,0.2,130.73,130.7,9.72060258]
[1764548370343,0.2,130.73,130.69,10.41060258]
[1764548370843,9.92060258,130.73,130.69,0.69]
[1764548371045,0.2,130.73,130.69,0.69]
[1764548371243,9.92060258,130.73,130.69,0.69]
[1764548371456,0.2,130.73,130.69,18.06225571]
[1764548371624,9.72060258,130.71,130.66,9.72060258]
[1764548371823,9.72060258,130.71,130.62,8.34569913]
[1764548371824,9.72060258,130.67,130.62,8.34569913]
[1764548372031,9.72060258,130.66,130.62,0.69]
[1764548372237,9.72060258,130.64,130.59,9.72060258]
[1764548372749,8.80994492,130.7,130.62,9.72060258]
[1764548373058,0.2,130.73,130.65,9.72060258]
[1764548373238,0.2,130.73,130.7,9.72060258]
[1764548373551,0.2,130.73,130.61,3.74]
[1764548373552,0.2,130.73,130.63,16.308864]
[1764548373733,0.2,130.73,130.69,9.72060258]
[1764548373931,0.2,130.73,130.64,0.69]
[1764548374133,0.2,130.73,130.7,9.72060258]
[1764548374341,0.2,130.73,130.64,0.69]
[1764548374342,9.72060258,130.71,130.66,9.72060258]
[1764548374527,9.72060258,130.7,130.65,0.69]
[1764548374726,9.72060258,130.69,130.62,0.69]
[1764548374943,9.72060258,130.67,130.62,10.41060258]
[1764548375124,8.80994492,130.71,130.63,9.72060258]
[1764548375125,9.72060258,130.68,130.63,9.72060258]
[1764548375322,8.80994492,130.69,130.61,0.69]
[1764548375525,9.72060258,130.64,130.59,9.72060258]
[1764548376048,9.72060258,130.6,130.58,1e-08]
[1764548376250,18.5305475,130.59,130.58,1e-08]
[1764548376449,22.2705475,130.59,130.58,1e-08]
[1764548376752,31.92810166,130.59,130.58,1e-08]
[1764548376943,28.18810166,130.59,130.58,1e-08]
[1764548377251,29.92810167,130.59,130.58,1e-08]
[1764548377451,42.49696567,130.59,130.58,1e-08]
[1764548377653,46.23696567,130.59,130.58,1e-08]
[1764548377855,8.80994492,130.61,130.58,1e-08]
[1764548378223,16.308864,130.63,130.58,1e-08]
[1764548378449,3.74,130.66,130.59,10.41060258]
[1764548378732,9.72060258,130.61,130.58,1e-08]
[1764548379165,9.72060258,130.59,130.58,1e-08]
[1764548379831,8.80994492,130.62,130.58,1e-08]
[1764548380029,9.72060258,130.62,130.59,0.69]
[1764548380345,9.72060258,130.62,130.58,8.34795462]
[1764548380540,16.46424143,130.65,130.58,8.34795462]
[1764548380933,9.72060258,130.63,130.58,8.34795462]
[1764548381130,3.74,130.66,130.58,17.3785572]
[1764548381131,9.72060258,130.64,130.58,17.3785572]
[1764548381342,16.46351163,130.66,130.58,7.65795462]
[1764548381544,9.72060258,130.63,130.58,18.0685572]
[1764548381762,16.46351163,130.66,130.59,0.69]
[1764548381931,9.72060258,130.64,130.59,0.69]
[1764548382130,16.46351163,130.66,130.59,0.69]
[1764548382351,9.72060258,130.63,130.58,7.65795462]
[1764548382655,16.46436135,130.65,130.58,8.34795462]
[1764548382855,9.72060258,130.62,130.58,7.65795462]
[1764548383059,9.72060258,130.6,130.58,1e-08]
[1764548383225,16.46436135,130.65,130.58,1e-08]
[1764548383226,9.72060258,130.61,130.58,1e-08]
[1764548383437,9.72060258,130.62,130.58,1e-08]
[1764548383864,3.74,130.64,130.58,0.69000001]
[1764548384061,35.59945511,130.65,130.58,18.06866092]
[1764548384062,8.80994492,130.65,130.58,18.06866092]
[1764548384266,3.74,130.72,130.58,24.65692234]
[1764548384465,9.72060258,130.67,130.63,9.72060258]
[1764548384780,3.74,130.7,130.65,9.72060258]
[1764548384942,3.74,130.7,130.64,7.6540644]
[1764548384943,9.72060258,130.71,130.66,9.72060258]
[1764548385272,9.72060258,130.67,130.59,7.65755417]
[1764548385472,3.74,130.7,130.6,0.69]
[1764548385651,9.72060258,130.65,130.6,0.69]
[1764548385854,9.72060258,130.65,130.6,10.41060258]
[1764548386158,0.2,130.73,130.64,9.72060258]
[1764548386354,0.2,130.73,130.62,16.308864]
[1764548386355,0.2,130.73,130.72,9.72060258]
[1764548386549,0.2,130.73,130.72,0.69]
[1764548387044,0.2,130.73,130.7,7.6506055]
[1764548387244,9.72060258,130.71,130.68,7.65170649]
[1764548387440,7.6499388,130.72,130.66,7.65306846]
[1764548387642,9.72060258,130.68,130.64,0.69]
[1764548387843,9.72060258,130.65,130.58,10.41060259]
[1764548388053,25.11880892,130.69,130.59,9.72060258]
[1764548388254,25.11880892,130.69,130.61,9.72060258]
[1764548388464,65.0244798,130.72,130.63,9.72060258]
[1764548388465,26.7747858,130.72,130.63,9.72060258]
[1764548388660,17.37179477,130.7,130.61,26.79733557]
[1764548388864,9.72060258,130.69,130.61,26.79733557]
[1764548389062,9.72060258,130.69,130.62,0.69]
[1764548389256,7.65119219,130.7,130.63,9.72060258]
[1764548389257,9.72060258,130.68,130.63,9.72060258]
[1764548389569,9.72060258,130.69,130.63,9.72060258]
[1764548389871,8.80994492,130.69,130.61,37.20793815]
[1764548390044,9.72060258,130.66,130.61,37.20793815]
[1764548390350,9.72060258,130.66,130.61,0.69]
[1764548390553,9.72060258,130.67,130.62,0.69]
[1764548390754,16.308864,130.69,130.63,7.65520936]
[1764548390962,9.72060258,130.67,130.63,7.65520936]
[1764548391164,16.308864,130.71,130.62,0.69]
[1764548391165,9.72060258,130.66,130.62,0.69]
[1764548391370,9.72060258,130.67,130.62,8.34550705]
[1764548391565,26.77900886,130.7,130.62,0.69]
[1764548391765,9.72060258,130.67,130.62,10.41060258]
[1764548391966,9.72060258,130.66,130.62,0.69]
[1764548392263,9.72060258,130.65,130.62,0.69]
[1764548392447,9.72060258,130.67,130.62,0.69]
[1764548392650,7.65123534,130.7,130.63,7.65520936]
[1764548392840,9.72060258,130.7,130.64,9.72060258]
[1764548393038,9.92060258,130.73,130.68,9.72060258]
[1764548393254,9.92060258,130.73,130.65,0.69]
[1764548393461,9.92060258,130.73,130.67,9.72060258]
[1764548393662,17.5699683,130.73,130.67,9.72060258]
[1764548393850,9.72060258,130.7,130.65,0.69]
[1764548394048,9.72060258,130.7,130.58,10.80994492]
[1764548394049,9.72060258,130.69,130.63,10.41060258]
[1764548394258,9.72060258,130.67,130.63,0.69]
[1764548394446,9.72060258,130.66,130.61,10.41060258]
[1764548394647,8.80994492,130.66,130.58,10.41060259]
[1764548394848,9.72060258,130.61,130.58,1e-08]
[1764548395070,9.72060258,130.62,130.58,1e-08]
[1764548395271,9.72060258,130.6,130.58,1e-08]
[1764548395663,9.72060258,130.61,130.58,1e-08]
[1764548396176,3.72,130.65,130.59,0.68]
[1764548396349,8.80994492,130.66,130.59,0.68]
[1764548396556,9.72060258,130.65,130.6,9.72060258]
[1764548396750,11.37054572,130.71,130.6,9.72060258]
[1764548396751,9.72060258,130.68,130.62,9.72060258]
[1764548397054,9.72060258,130.69,130.63,9.72060258]
[1764548397266,3.72,130.71,130.64,9.72060258]
[1764548397553,9.72060258,130.65,130.61,0.68]
[1764548397768,9.72060258,130.62,130.58,1e-08]
[1764548397966,11.37054607,130.71,130.58,1e-08]
[1764548397967,9.72060258,130.59,130.58,1e-08]
[1764548398553,9.72060258,130.6,130.58,0.68000001]
[1764548399077,8.80994492,130.64,130.58,1e-08]
[1764548399255,9.72060258,130.59,130.58,1e-08]
[1764548400572,4.00011383,130.63,130.58,1e-08]
[1764548400763,7.65731471,130.6,130.58,1e-08]
[1764548400952,22.85605764,130.65,130.58,0.68000001]
[1764548401149,26.77888293,130.7,130.59,9.72060258]
[1764548401350,26.77888293,130.7,130.58,0.68000001]
[1764548401351,9.72060258,130.65,130.6,10.40060258]
[1764548401549,8.80994492,130.69,130.6,10.40060258]
[1764548401772,9.72060258,130.65,130.61,0.68]
[1764548401976,8.80994492,130.69,130.61,0.68]
[1764548402205,9.72060258,130.62,130.58,1e-08]
[1764548402379,16.308864,130.66,130.59,10.40060258]
[1764548402569,9.72060258,130.64,130.59,10.40060258]
[1764548402748,9.72060258,130.64,130.6,8.33696784]
[1764548402951,9.72060258,130.62,130.6,0.68]
[1764548403147,9.72060258,130.63,130.58,7.65768232]
[1764548403379,9.72060258,130.62,130.59,0.68]
[1764548403558,43.09184531,130.68,130.58,1e-08]
[1764548403559,9.72060258,130.6,130.58,1e-08]
[1764548403757,9.72060258,130.59,130.58,1e-08]
[1764548403976,8.80994492,130.59,130.58,1e-08]
[1764548404179,8.80994492,130.62,130.58,1e-08]
[1764548404479,9.72060258,130.59,130.58,1e-08]
[1764548404668,27.68465689,130.63,130.58,1e-08]
[1764548404870,44.25404679,130.7,130.59,0.68]
[1764548404871,7.65169485,130.69,130.59,0.68]
[1764548405078,23.96055885,130.69,130.59,0.68]
[1764548405263,9.72060258,130.62,130.58,1e-08]
[1764548405464,16.308864,130.65,130.58,1e-08]
[1764548405465,8.80994492,130.64,130.58,1e-08]
[1764548405667,9.72060258,130.63,130.58,10.40060259]
[1764548405877,9.72060258,130.61,130.58,1e-08]
[1764548406384,9.72060258,130.6,130.58,1e-08]
[1764548406554,25.11880892,130.66,130.59,0.68]
[1764548406878,35.59292623,130.68,130.6,7.65696784]
[1764548407085,7.65130144,130.7,130.63,9.72060258]
[1764548407281,3.72,130.71,130.64,9.72060258]
[1764548407466,9.72060258,130.7,130.65,0.68]
[1764548407668,3.72,130.71,130.65,0.68]
[1764548407910,9.72060258,130.7,130.65,0.68]
[1764548408188,9.72060258,130.71,130.65,0.68]
[1764548408354,9.72060258,130.7,130.65,0.68]
[1764548408687,9.72060258,130.68,130.64,7.65462339]
[1764548408987,0.2,130.73,130.64,7.65462339]
[1764548408988,9.72060258,130.66,130.64,7.65462339]
[1764548409186,9.72060258,130.65,130.62,7.65579543]
[1764548409389,20.028864,130.7,130.59,7.65755417]
[1764548409571,8.80994492,130.67,130.59,7.65755417]
[1764548409753,9.72060258,130.63,130.59,8.33755417]
[1764548409956,9.72060258,130.65,130.6,0.68]
[1764548410272,3.72,130.7,130.61,9.72060258]
[1764548410582,9.72060258,130.71,130.61,3.72]
[1764548410757,9.72060258,130.7,130.65,7.6540375]
[1764548410958,9.72060258,130.69,130.63,9.72060258]
[1764548411257,9.72060258,130.69,130.62,0.68]
[1764548411258,9.72060258,130.67,130.62,0.68]
[1764548411457,8.80994492,130.69,130.62,0.68]
[1764548411458,9.72060258,130.66,130.62,0.68]
[1764548411683,9.72060258,130.63,130.58,1e-08]
[1764548411983,25.11880892,130.65,130.58,0.68000001]
[1764548412163,9.72060258,130.66,130.6,9.72060258]
[1764548412364,9.72060258,130.66,130.61,0.68]
[1764548412667,7.65256063,130.68,130.61,8.33591814]
[1764548412978,8.80994492,130.67,130.58,10.40060259]
[1764548413157,8.80994492,130.67,130.59,0.68]
[1764548413359,9.72060258,130.62,130.58,7.65798232]
[1764548413654,9.72060258,130.63,130.58,0.68000001]
[1764548414070,9.72060258,130.63,130.58,8.33792527]
[1764548414276,9.72060258,130.64,130.58,18.05852785]
[1764548414476,9.72060258,130.64,130.59,0.68]
[1764548414763,9.72060258,130.64,130.59,8.3373475]
[1764548414961,9.72060258,130.64,130.59,0.68]
[1764548415264,9.72060258,130.65,130.6,10.40060258]
[1764548415585,9.72060258,130.66,130.59,26.80124009]
[1764548415883,9.72060258,130.66,130.61,0.68]
[1764548416087,9.72060258,130.69,130.63,9.72060258]
[1764548416382,8.27080737,130.69,130.64,8.27080737]
[1764548416582,3.72,130.71,130.65,0.68]
[1764548416907,8.27080737,130.66,130.58,0.68000001]
[1764548417222,8.27080737,130.61,130.58,1e-08]
[1764548417386,8.27080737,130.63,130.58,0.68000001]
[1764548417762,8.27080737,130.62,130.58,0.68000001]
[1764548418076,8.27080737,130.63,130.58,8.338014]
[1764548418265,8.27080737,130.62,130.58,8.33803694]
[1764548418661,8.27080737,130.62,130.59,0.68]
[1764548418868,8.27080737,130.62,130.59,8.33743902]
[1764548419173,38.25847425,130.69,130.59,27.48132446]
[1764548419174,8.27080737,130.64,130.59,27.48132446]
[1764548419373,8.27080737,130.64,130.6,0.68]
[1764548420275,25.11880892,130.69,130.6,0.68]
[1764548420597,8.27080737,130.64,130.6,0.68]
[1764548420761,8.27080737,130.64,130.61,7.65638159]
[1764548421218,8.27080737,130.62,130.59,7.65701836]
[1764548421494,75.0,130.77,130.59,7.65701836]
[1764548421495,23.96114437,130.68,130.61,8.27080737]
[1764548421711,7.65228037,130.68,130.61,8.27080737]
[1764548421873,8.27080737,130.66,130.62,0.68]
[1764548422064,8.27080737,130.65,130.62,0.68]
[1764548422265,8.27080737,130.65,130.59,26.8009038]
[1764548422471,35.59102001,130.69,130.6,0.68]
[1764548422692,8.27080737,130.66,130.6,8.95080737]
[1764548422998,8.27080737,130.66,130.61,27.47733557]
[1764548423167,8.27080737,130.66,130.61,35.74814294]
[1764548423492,26.78336526,130.68,130.62,0.68]
[1764548423695,8.27080737,130.65,130.61,8.33638159]
[1764548424001,8.27080737,130.65,130.58,1e-08]
[1764548424002,8.27080737,130.62,130.58,1e-08]
[1764548424174,16.308864,130.67,130.59,8.27080737]
[1764548424518,8.27080737,130.62,130.58,27.45291856]
[1764548424667,8.27080737,130.6,130.58,1e-08]
[1764548425169,8.27080737,130.59,130.58,1e-08]
[1764548425576,17.08075229,130.59,130.58,1e-08]
[1764548426206,8.80994492,130.59,130.58,1e-08]
[1764548426411,17.08075229,130.59,130.58,1e-08]
[1764548426697,7.65749333,130.6,130.58,1e-08]
[1764548426880,15.9283007,130.6,130.58,1e-08]
[1764548427270,8.27080737,130.59,130.58,1e-08]
[1764548427882,17.08075229,130.59,130.58,1e-08]
[1764548428200,20.80075229,130.59,130.58,1e-08]
[1764548428405,16.308864,130.57,130.56,103.17967894]
[1764548428593,33.38961629,130.57,130.56,103.17967894]
[1764548428797,41.0483434,130.57,130.56,103.17967894]
[1764548429383,32.77753603,130.57,130.56,103.17967894]
[1764548429604,41.0483434,130.57,130.56,103.17967894]
[1764548430001,32.77753603,130.57,130.56,103.17967894]
[1764548430226,41.0483434,130.57,130.56,61.85639059]
[1764548430695,32.77753603,130.57,130.56,61.85639059]
[1764548430897,41.0483434,130.57,130.56,61.85639059]
[1764548431509,22.86521354,130.59,130.56,62.51639059]
[1764548431510,3.72,130.59,130.56,62.51639059]
[1764548431826,8.27080737,130.62,130.57,0.66]
[1764548431980,8.27080737,130.63,130.58,7.6581406]
[1764548432183,8.27080737,130.62,130.58,7.6581406]
[1764548432394,11.37245683,130.68,130.59,0.66]